fUSD/lending_fUSD_20241105
["ID","MTS","AMOUNT","RATE_DAILY","PERIOD"]
[341348647,1730818348537,-500.0,0.00035616,13]
[341348648,1730818348546,-500.0,0.00035616,13]
[341348649,1730818348558,-500.0,0.00035616,13]
[341348650,1730818348731,-500.0,0.00035616,13]
[341348651,1730818348742,-500.0,0.00035616,13]
[341348652,1730818348751,-500.0,0.00035616,13]
[341348653,1730818348761,-500.0,0.00035616,13]
[341348654,1730818348771,-500.0,0.00035616,13]
[341348655,1730818348780,-500.0,0.00035616,13]
[341348656,1730818348790,-500.0,0.00035616,13]
[341348657,1730818348799,-500.0,0.00035616,13]
[341348658,1730818348808,-500.0,0.00035616,13]
[341348659,1730818348818,-500.0,0.00035616,13]
[341348660,1730818348829,-500.0,0.00035616,13]
[341348661,1730818348838,-500.0,0.00035616,13]
[341348662,1730818348848,-500.0,0.00035616,13]
[341348663,1730818348857,-500.0,0.00035616,13]
[341348664,1730818348867,-500.0,0.00035616,13]
[341348665,1730818348880,-500.0,0.00035616,13]
[341348666,1730818348889,-500.0,0.00035616,13]
[341348667,1730818348898,-500.0,0.00035616,13]
[341348668,1730818348907,-500.0,0.00035616,13]
[341348669,1730818348916,-500.0,0.00035616,13]
[341348670,1730818348926,-500.0,0.00035616,13]
[341348671,1730818348935,-500.0,0.00035616,13]
[341348672,1730818348945,-500.0,0.00035616,13]
[341348673,1730818348954,-500.0,0.00035616,13]
[341348674,1730818348964,-500.0,0.00035616,13]
[341348675,1730818348973,-569.0,0.00035616,13]
[341348676,1730818348983,-1833.064,0.00035791,43]
[341348677,1730818348993,-1000.0,0.0003589,2]
[341348678,1730818349003,-1649.88,0.0003589,120]
[341348679,1730818349012,-152.0,0.000359,14]
[341348680,1730818349022,-1000.0,0.00035958,120]
[341348681,1730818349032,-150.0,0.00036,120]
[341348682,1730818349041,-250.0,0.00036,30]
[341348683,1730818349051,-683.26,0.00036,14]
[341348684,1730818349060,-2938.41,0.00036,30]
[341348685,1730818349070,-998.0,0.00036026,3]
[341348686,1730818349079,-228533.67008556,0.00036163,2]
[341348687,1730818349088,-154.405893,0.00036163,7]
[341348688,1730818349098,-154.405893,0.00036163,7]
[341348689,1730818349108,-151.0,0.00036163,7]
[341348690,1730818349119,-9112.30833549,0.00036163,2]
[341348691,1730818349136,-1000.0,0.00036164,2]
[341348692,1730818349147,-1649.88,0.00036164,120]
[341348693,1730818349156,-441106.0,0.000362,2]
[341348694,1730818349165,-2019.5,0.00036301,120]
[341348695,1730818349176,-152.13939839,0.00036305,2]
[341348696,1730818349185,-220.22,0.00036344,120]
[341348697,1730818349195,-1000.0,0.00036438,2]
[341348698,1730818349204,-1649.88,0.00036438,120]
[341348699,1730818349214,-152.0,0.00036462,15]
[341348700,1730818349223,-312.3,0.0003656,14]
[341348701,1730818349234,-1000.0,0.00036712,2]
[341348702,1730818349244,-1649.88,0.00036712,120]
[341348703,1730818349254,-11174.24996164,0.00036792,2]
[341348704,1730818349267,-337786.40840192,0.000368,2]
[341348705,1730818349278,-151.0,0.000368,7]
[341348706,1730818349288,-547.16,0.000368,31]
[341348707,1730818349297,-547.16,0.000368,31]
[341348708,1730818349306,-547.16,0.000368,31]
[341348709,1730818349315,-547.16,0.000368,31]
[341348710,1730818349325,-547.16,0.000368,31]
[341348711,1730818349335,-547.16,0.000368,31]
[341348712,1730818349344,-547.16,0.000368,31]
[341348713,1730818349354,-547.16,0.000368,31]
[341348714,1730818349363,-547.16,0.000368,31]
[341348715,1730818349376,-547.16,0.000368,31]
[341348716,1730818349387,-547.16,0.000368,31]
[341348717,1730818349396,-547.16,0.000368,31]
[341348718,1730818349405,-151.0,0.000368,7]
[341348719,1730818349414,-172.43810775,0.00036822,2]
[341348720,1730818349424,-16027.48851557,0.00036858,5]
[341348721,1730818349434,-307.88554437,0.00036875,2]
[341348722,1730818349444,-5000.0,0.0003688,15]
[341348723,1730818349453,-5000.0,0.0003688,16]
[341348724,1730818349464,-5050.0,0.0003688,17]
[341348725,1730818349475,-617.36,0.00036897,2]
[341348726,1730818349485,-500.0,0.00036919,14]
[341348727,1730818349494,-2600.0,0.00036985,60]
[341348728,1730818349504,-1000.0,0.00036986,2]
[341348729,1730818349514,-1649.88,0.00036986,120]
[341348730,1730818349524,-2000.0,0.00036986,15]
[341348731,1730818349534,-2000.0,0.00036986,15]
[341348732,1730818349544,-2000.0,0.00036986,15]
[341348733,1730818349554,-2000.0,0.00036986,15]
[341348734,1730818349564,-2000.0,0.00036986,15]
[341348735,1730818349575,-2000.0,0.00036986,15]
[341348736,1730818349584,-2000.0,0.00036986,15]
[341348737,1730818349594,-2000.0,0.00036986,15]
[341348738,1730818349604,-2000.0,0.00036986,15]
[341348739,1730818349614,-2000.0,0.00036986,15]
[341348740,1730818349628,-2019.5,0.00036986,120]
[341348741,1730818349637,-1000.0,0.00036986,89]
[341348742,1730818349647,-1000.0,0.00036986,89]
[341348743,1730818349655,-1000.0,0.00036986,89]
[341348744,1730818349665,-1000.0,0.00036986,89]
[341348745,1730818349675,-1000.0,0.00036986,89]
[341348746,1730818349684,-1000.0,0.00036986,89]
[341348747,1730818349693,-1000.0,0.00036986,89]
[341348748,1730818349703,-1000.0,0.00036986,89]
[341348749,1730818349712,-1000.0,0.00036986,89]
[341348750,1730818349721,-1000.0,0.00036986,89]
[341348751,1730818349730,-1000.0,0.00036986,89]
[341348752,1730818349740,-1000.0,0.00036986,89]
[341348753,1730818349749,-1000.0,0.00036986,89]
[341348754,1730818349758,-1000.0,0.00036986,89]
[341348755,1730818349767,-1000.0,0.00036986,89]
[341348756,1730818349778,-1000.0,0.00036986,89]
[341348757,1730818349789,-1000.0,0.00036986,89]
[341348758,1730818349798,-1000.0,0.00036986,89]
[341348759,1730818349808,-1000.0,0.00036986,89]
[341348760,1730818349817,-1000.0,0.00036986,89]
[341348761,1730818349826,-1000.0,0.00036986,89]
[341348762,1730818349835,-1000.0,0.00036986,89]
[341348763,1730818349845,-957.32950612,0.00036986,89]
[341348764,1730818349854,-1077.0,0.00037,7]
[341348765,1730818349863,-10095.71371102,0.00037,2]
[341348766,1730818349872,-152.0,0.00037025,16]
[341348767,1730818349885,-156.812,0.0003708,30]
[341348768,1730818349895,-1000.0,0.0003726,2]
[341348769,1730818349904,-1649.88,0.0003726,120]
[341348770,1730818349913,-1365.45186273,0.0003729,120]
[341348771,1730818349922,-1000.0,0.00037328,120]
[341348772,1730818349932,-996.44,0.0003737,21]
[341348773,1730818349941,-11547.0,0.000374,3]
[341348774,1730818349950,-11079.6535214,0.00037473,3]
[341348775,1730818349959,-683.26,0.000375,14]
[341348776,1730818349969,-2938.41,0.000375,30]
[341348777,1730818349978,-2600.0,0.00037533,60]
[341348778,1730818349988,-1000.0,0.00037534,2]
[341348779,1730818349997,-1649.88,0.00037534,120]
[341348780,1730818350007,-152.0,0.00037587,17]
[341348781,1730818350016,-4142.22986342,0.0003759,2]
[341348782,1730818350025,-2019.5,0.00037671,120]
[341348783,1730818350034,-151.0,0.000377,7]
[341348784,1730818350045,-151.0,0.000377,7]
[341348785,1730818350055,-500.0,0.00037782,120]
[341348786,1730818350064,-249.61,0.00037797,120]
[341348787,1730818350075,-165.89902325,0.000378,2]
[341348788,1730818350084,-1000.0,0.00037808,2]
[341348789,1730818350094,-1649.88,0.00037808,120]
[341348790,1730818350103,-32534.59752744,0.000379,2]
[341348791,1730818350112,-5115.92072676,0.000379,120]
[341348792,1730818350122,-1209.39445116,0.00038,10]
[341348793,1730818350135,-1000.0,0.00038,8]
[341348794,1730818350144,-1000.0,0.00038,120]
[341348795,1730818350154,-1000.0,0.00038,120]
[341348796,1730818350163,-1000.0,0.00038,120]
[341348797,1730818350172,-963.37699553,0.00038,120]
[341348798,1730818350183,-3037.76130783,0.00038,120]
[341348799,1730818350192,-681.31911239,0.00038,120]
[341348800,1730818350202,-250.0,0.00038,30]
[341348801,1730818350213,-153.96,0.00038036,2]
[341348802,1730818350223,-312.3,0.0003808,26]
[341348803,1730818350232,-2600.0,0.00038081,60]
[341348804,1730818350242,-500.0,0.00038081,60]
[341348805,1730818350252,-1000.0,0.00038082,2]
[341348806,1730818350267,-1649.88,0.00038082,120]
[341348807,1730818350277,-152.0,0.0003815,18]
[341348808,1730818350286,-150.5,0.00038326,120]
[341348809,1730818350296,-150.5,0.0003833,120]
[341348810,1730818350306,-186.0,0.0003833,30]
[341348811,1730818350315,-272.08,0.00038336,120]
[341348812,1730818350325,-150.5,0.00038336,120]
[341348813,1730818350335,-150.5,0.0003834,120]
[341348814,1730818350347,-186.0,0.0003834,30]
[341348815,1730818350356,-150.5,0.00038346,120]
[341348816,1730818350366,-150.5,0.00038346,120]
[341348817,1730818350380,-154.61,0.00038346,120]
[341348818,1730818350390,-156.93,0.00038346,120]
[341348819,1730818350399,-157.19,0.00038346,120]
[341348820,1730818350408,-150.5,0.0003835,120]
[341348821,1730818350418,-199.22,0.0003835,120]
[341348822,1730818350427,-186.0,0.0003835,30]
[341348823,1730818350436,-150.0,0.00038355,30]
[341348824,1730818350446,-563.56966347,0.00038356,7]
[341348825,1730818350455,-5335.57378175,0.00038356,7]
[341348826,1730818350465,-8802.17249716,0.00038356,7]
[341348827,1730818350474,-68222.2517909,0.00038356,7]
[341348828,1730818350484,-32170.0520396,0.00038356,7]
[341348829,1730818350493,-11738.5181766,0.00038356,7]
[341348830,1730818350503,-1000.0,0.00038356,2]
[341348831,1730818350512,-1500.0,0.00038356,2]
[341348832,1730818350522,-1649.88,0.00038356,120]
[341348833,1730818350532,-500.0,0.00038356,5]
[341348834,1730818350541,-500.0,0.00038356,5]
[341348835,1730818350551,-594.05517427,0.00038356,5]
[341348836,1730818350560,-2019.5,0.00038356,120]
[341348837,1730818350570,-246.909668,0.00038356,7]
[341348838,1730818350579,-707779.44,0.00038356,2]
[341348839,1730818350588,-3000.0,0.00038483,15]
[341348840,1730818350598,-150.0,0.00038492,30]
[341348841,1730818350607,-950.15606917,0.000385,120]
[341348842,1730818350616,-547.16,0.000386,31]
[341348843,1730818350630,-547.16,0.000386,31]
[341348844,1730818350639,-547.16,0.000386,31]
[341348845,1730818350648,-547.16,0.000386,31]
[341348846,1730818350658,-547.16,0.000386,31]
[341348847,1730818350668,-547.16,0.000386,31]
[341348848,1730818350677,-547.16,0.000386,31]
[341348849,1730818350686,-547.16,0.000386,31]
[341348850,1730818350695,-547.16,0.000386,31]
[341348851,1730818350704,-547.16,0.000386,31]
[341348852,1730818350713,-547.16,0.000386,31]
[341348853,1730818350722,-547.16,0.000386,31]
[341348854,1730818350731,-547.16,0.000386,31]
[341348855,1730818350741,-547.16,0.000386,31]
[341348856,1730818350751,-547.16,0.000386,31]
[341348857,1730818350760,-547.16,0.000386,31]
[341348858,1730818350769,-547.16,0.000386,31]
[341348859,1730818350779,-547.16,0.000386,31]
[341348860,1730818350788,-547.16,0.000386,31]
[341348861,1730818350797,-547.16,0.000386,31]
[341348862,1730818350806,-547.16,0.000386,31]
[341348863,1730818350816,-547.16,0.000386,31]
[341348864,1730818350825,-547.16,0.000386,31]
[341348865,1730818350834,-547.16,0.000386,31]
[341348866,1730818350843,-151.0,0.000386,14]
[341348867,1730818350852,-151.0,0.000386,14]
[341348868,1730818350862,-254.804655,0.000386,14]
[341348869,1730818350872,-156.838,0.00038627,120]
[341348870,1730818350883,-2600.0,0.00038629,60]
[341348871,1730818350892,-150.0,0.00038629,30]
[341348872,1730818350903,-1649.88,0.0003863,120]
[341348873,1730818350911,-1000.0,0.00038698,120]
[341348874,1730818350920,-11547.0,0.000387,5]
[341348875,1730818350931,-152.0,0.00038713,19]
[341348876,1730818350943,-150.0,0.00038766,30]
[341348877,1730818350952,-154.405893,0.00038788,14]
[341348878,1730818350962,-154.405893,0.00038788,14]
[341348879,1730818350971,-105143.0,0.00038788,5]
[341348880,1730818350980,-198.14385702,0.00038795,7]
[341348881,1730818350990,-30660.68669901,0.000388,2]
[341348882,1730818350999,-326.61394506,0.000388,30]
[341348883,1730818351008,-307.88554437,0.00038888,2]
[341348884,1730818351017,-150.0,0.00038903,30]
[341348885,1730818351027,-1649.88,0.00038904,120]
[341348886,1730818351035,-186.0,0.0003897,30]
[341348887,1730818351045,-150.5,0.0003897,120]
[341348888,1730818351056,-186.0,0.0003898,30]
[341348889,1730818351066,-186.0,0.0003898,30]
[341348890,1730818351078,-188.11,0.0003898,30]
[341348891,1730818351087,-150.5,0.0003898,120]
[341348892,1730818351097,-200.39,0.0003898,120]
[341348893,1730818351106,-186.0,0.0003899,30]
[341348894,1730818351115,-186.0,0.0003899,30]
[341348895,1730818351128,-186.0,0.0003899,30]
[341348896,1730818351138,-150.5,0.0003899,120]
[341348897,1730818351148,-150.5,0.0003899,120]
[341348898,1730818351157,-9000.0,0.00039,2]
[341348899,1730818351166,-509.55798232,0.00039,120]
[341348900,1730818351177,-578.02319681,0.00039,120]
[341348901,1730818351187,-223.74874177,0.00039,120]
[341348902,1730818351196,-2441.46,0.00039012,2]
[341348903,1730818351206,-213.20616726,0.0003904,30]
[341348904,1730818351215,-2019.5,0.00039041,120]
[341348905,1730818351225,-2500.0,0.00039075,2]
[341348906,1730818351235,-996.44,0.0003916,35]
[341348907,1730818351244,-617.36,0.00039161,2]
[341348908,1730818351253,-500.0,0.00039177,60]
[341348909,1730818351263,-1400.0,0.00039177,60]
[341348910,1730818351275,-500.0,0.00039177,60]
[341348911,1730818351285,-1649.93312068,0.00039178,120]
[341348912,1730818351294,-152.0,0.00039275,20]
[341348913,1730818351304,-19415.37197709,0.000394,120]
[341348914,1730818351313,-44564.7900574,0.000395,7]
[341348915,1730818351322,-5197.50827109,0.000395,120]
[341348916,1730818351332,-5015.78557,0.00039598,30]
[341348917,1730818351341,-312.3,0.000396,38]
[341348918,1730818351351,-2600.0,0.00039725,60]
[341348919,1730818351360,-500.0,0.00039725,60]
[341348920,1730818351371,-1400.0,0.00039725,60]
[341348921,1730818351383,-2019.5,0.00039726,120]
[341348922,1730818351392,-177.94654558,0.00039726,30]
[341348923,1730818351402,-152.0,0.00039838,21]
[341348924,1730818351412,-230.80719329,0.0003999,120]
[341348925,1730818351421,-347.0385227,0.00039999,31]
[341348926,1730818351431,-195.31946897,0.00039999,31]
[341348927,1730818351440,-500.0,0.00039999,31]
[341348928,1730818351450,-500.0,0.00039999,31]
[341348929,1730818351460,-500.0,0.00039999,31]
[341348930,1730818351469,-500.0,0.00039999,31]
[341348931,1730818351479,-500.0,0.00039999,31]
[341348932,1730818351488,-500.0,0.00039999,31]
[341348933,1730818351498,-500.0,0.00039999,31]
[341348934,1730818351507,-500.0,0.00039999,31]
[341348935,1730818351516,-240.29622169,0.00039999,31]
[341348936,1730818351526,-500.0,0.00039999,31]
[341348937,1730818351535,-500.0,0.00039999,31]
[341348938,1730818351545,-500.0,0.00039999,31]
[341348939,1730818351554,-500.0,0.00039999,31]
[341348940,1730818351563,-500.0,0.00039999,31]
[341348941,1730818351572,-500.0,0.00039999,31]
[341348942,1730818351582,-500.0,0.00039999,31]
[341348943,1730818351591,-500.0,0.00039999,31]
[341348944,1730818351600,-500.0,0.00039999,31]
[341348945,1730818351610,-500.0,0.00039999,31]
[341348946,1730818351619,-500.0,0.00039999,31]
[341348947,1730818351631,-500.0,0.00039999,31]
[341348948,1730818351640,-500.0,0.00039999,31]
[341348949,1730818351650,-500.0,0.00039999,31]
[341348950,1730818351659,-500.0,0.00039999,31]
[341348951,1730818351669,-650.0,0.00039999,31]
[341348952,1730818351678,-500.0,0.00039999,31]
[341348953,1730818351688,-500.0,0.00039999,31]
[341348954,1730818351698,-500.0,0.00039999,31]
[341348955,1730818351707,-500.0,0.00039999,31]
[341348956,1730818351717,-500.0,0.00039999,31]
[341348957,1730818351727,-456.81276447,0.00039999,31]
[341348958,1730818351737,-65465.78404257,0.0004,7]
[341348959,1730818351746,-1000.0,0.0004,14]
[341348960,1730818351755,-1208.5,0.0004,2]
[341348961,1730818351765,-3000.0,0.0004,2]
[341348962,1730818351774,-3000.0,0.0004,2]
[341348963,1730818351783,-3000.0,0.0004,2]
[341348964,1730818351793,-3000.0,0.0004,2]
[341348965,1730818351802,-3000.0,0.0004,2]
[341348966,1730818351811,-85507.29170422,0.0004,2]
[341348967,1730818351821,-399.69547711,0.0004,7]
[341348968,1730818351831,-227.02695722,0.0004,2]
[341348969,1730818351840,-925.64243753,0.0004,7]
[341348970,1730818351852,-1514.27636065,0.0004,9]
[341348971,1730818351863,-120848.92107166,0.0004,7]
[341348972,1730818351872,-2453.03418609,0.0004,7]
[341348973,1730818351883,-50428.29170797,0.0004,7]
[341348974,1730818351892,-336659.93532821,0.0004,4]
[341348975,1730818351901,-5546.7736655,0.0004,5]
[341348976,1730818351910,-287.71842242,0.0004,30]
[341348977,1730818351920,-191.44112072,0.0004,30]
[341348978,1730818351929,-441.07161084,0.0004,30]
[341348979,1730818351938,-373.86030608,0.0004,2]
[341348980,1730818351947,-176.38578425,0.0004,30]
[341348981,1730818351956,-10221.4312268,0.0004,120]
[341348982,1730818351966,-3037.76130783,0.0004,120]
[341348983,1730818351976,-681.31911239,0.0004,120]
[341348984,1730818351985,-1121.01,0.0004,120]
[341348985,1730818351995,-250.0,0.0004,30]
[341348986,1730818352004,-151.0,0.0004,14]
[341348987,1730818352013,-153.3,0.0004,2]
[341348988,1730818352023,-153.3,0.0004,2]
[341348989,1730818352032,-153.3,0.0004,2]
[341348990,1730818352041,-153.3,0.0004,2]
[341348991,1730818352051,-153.3,0.0004,2]
[341348992,1730818352062,-153.3,0.0004,2]
[341348993,1730818352071,-153.3,0.0004,2]
[341348994,1730818352081,-153.3,0.0004,2]
[341348995,1730818352090,-153.3,0.0004,2]
[341348996,1730818352099,-153.3,0.0004,2]
[341348997,1730818352109,-153.3,0.0004,2]
[341348998,1730818352118,-153.3,0.0004,2]
[341348999,1730818352129,-1280.0,0.0004,120]
[341349000,1730818352139,-151.0,0.00040027,120]
[341349001,1730818352148,-1000.0,0.00040068,120]
[341349002,1730818352158,-177.94654558,0.00040247,30]
[341349003,1730818352167,-500.0,0.00040273,60]
[341349004,1730818352177,-1400.0,0.00040273,60]
[341349005,1730818352187,-500.0,0.00040273,60]
[341349006,1730818352196,-151.0,0.000403,7]
[341349007,1730818352206,-547.16,0.000403,31]
[341349008,1730818352215,-547.16,0.000403,31]
[341349009,1730818352224,-547.16,0.000403,31]
[341349010,1730818352233,-547.16,0.000403,31]
[341349011,1730818352243,-547.16,0.000403,31]
[341349012,1730818352252,-547.16,0.000403,31]
[341349013,1730818352267,-547.16,0.000403,31]
[341349014,1730818352277,-547.16,0.000403,31]
[341349015,1730818352286,-547.16,0.000403,31]
[341349016,1730818352296,-547.16,0.000403,31]
[341349017,1730818352307,-547.16,0.000403,31]
[341349018,1730818352316,-547.16,0.000403,31]
[341349019,1730818352325,-547.16,0.000403,31]
[341349020,1730818352335,-547.16,0.000403,31]
[341349021,1730818352347,-547.16,0.000403,31]
[341349022,1730818352357,-547.16,0.000403,31]
[341349023,1730818352366,-547.16,0.000403,31]
[341349024,1730818352378,-547.16,0.000403,31]
[341349025,1730818352387,-547.16,0.000403,31]
[341349026,1730818352397,-547.16,0.000403,31]
[341349027,1730818352406,-547.16,0.000403,31]
[341349028,1730818352416,-547.16,0.000403,31]
[341349029,1730818352425,-547.16,0.000403,31]
[341349030,1730818352623,-547.16,0.000403,31]
[341349031,1730818352636,-249.61,0.00040381,120]
[341349032,1730818352645,-152.0,0.00040401,22]
[341349033,1730818352654,-2019.5,0.0004041,120]
[341349034,1730818352663,-1284.41692586,0.000405,120]
[341349035,1730818352672,-299.34679951,0.0004063,10]
[341349036,1730818352682,-233.65344779,0.00040767,21]
[341349037,1730818352691,-229.740036,0.0004077,30]
[341349038,1730818352700,-727.41,0.00040794,120]
[341349039,1730818352709,-727.41,0.00040794,120]
[341349040,1730818352718,-727.41,0.00040794,120]
[341349041,1730818352727,-727.41,0.00040794,120]
[341349042,1730818352736,-727.41,0.00040794,120]
[341349043,1730818352745,-727.41,0.00040794,120]
[341349044,1730818352754,-727.41,0.00040794,120]
[341349045,1730818352763,-727.41,0.00040794,120]
[341349046,1730818352772,-727.41,0.00040794,120]
[341349047,1730818352782,-727.41,0.00040794,120]
[341349048,1730818352790,-727.41,0.00040794,120]
[341349049,1730818352799,-727.41,0.00040794,120]
[341349050,1730818352808,-727.41,0.00040794,120]
[341349051,1730818352818,-727.41,0.00040794,120]
[341349052,1730818352827,-727.41,0.00040794,120]
[341349053,1730818352837,-727.41,0.00040794,120]
[341349054,1730818352846,-727.41,0.00040794,120]
[341349055,1730818352855,-727.41,0.00040794,120]
[341349056,1730818352864,-727.41,0.00040794,120]
[341349057,1730818352876,-727.41,0.00040794,120]
[341349058,1730818352886,-727.41,0.00040794,120]
[341349059,1730818352895,-727.41,0.00040794,120]
[341349060,1730818352904,-727.41,0.00040794,120]
[341349061,1730818352913,-727.48277958,0.00040794,120]
[341349062,1730818352923,-177.94654558,0.00040795,30]
[341349063,1730818352934,-162.49999998,0.00040795,30]
[341349064,1730818352946,-500.0,0.00040821,60]
[341349065,1730818352955,-1400.0,0.00040821,60]
[341349066,1730818352964,-2600.0,0.00040821,60]
[341349067,1730818352974,-307.88554437,0.000409,2]
[341349068,1730818352984,-996.44,0.0004095,49]
[341349069,1730818352994,-152.0,0.00040963,23]
[341349070,1730818353003,-278.281828,0.00040985,120]
[341349071,1730818353013,-356.77543,0.00040985,120]
[341349072,1730818353022,-500.0,0.00040985,120]
[341349073,1730818353032,-205.529246,0.00040985,120]
[341349074,1730818353041,-5457.0088933,0.00041,2]
[341349075,1730818353051,-2712945.0,0.00041,2]
[341349076,1730818353060,-300.0,0.00041,7]
[341349077,1730818353070,-200.66661691,0.00041,7]
[341349078,1730818353080,-3887.95,0.00041,120]
[341349079,1730818353089,-301.999995,0.00041,120]
[341349080,1730818353099,-281.0,0.00041,7]
[341349081,1730818353108,-151.0,0.00041,7]
[341349082,1730818353118,-154.405893,0.00041,14]
[341349083,1730818353130,-154.405893,0.00041,14]
[341349084,1730818353140,-151.0,0.00041,14]
[341349085,1730818353149,-1000.0,0.00041095,120]
[341349086,1730818353159,-500.0,0.00041095,2]
[341349087,1730818353168,-500.0,0.00041095,2]
[341349088,1730818353178,-500.0,0.00041095,2]
[341349089,1730818353189,-500.0,0.00041095,2]
[341349090,1730818353200,-500.0,0.00041095,2]
[341349091,1730818353210,-500.0,0.00041095,2]
[341349092,1730818353220,-500.0,0.00041095,2]
[341349093,1730818353230,-500.0,0.00041095,2]
[341349094,1730818353240,-500.0,0.00041095,2]
[341349095,1730818353250,-493.12080062,0.00041095,2]
[341349096,1730818353261,-300.0,0.00041095,120]
[341349097,1730818353272,-300.0,0.00041095,120]
[341349098,1730818353283,-300.0,0.00041095,120]
[341349099,1730818353292,-300.0,0.00041095,120]
[341349100,1730818353301,-300.0,0.00041095,120]
[341349101,1730818353311,-300.0,0.00041095,120]
[341349102,1730818353321,-300.0,0.00041095,120]
[341349103,1730818353330,-300.0,0.00041095,120]
[341349104,1730818353340,-300.0,0.00041095,120]
[341349105,1730818353349,-300.0,0.00041095,120]
[341349106,1730818353359,-300.0,0.00041095,120]
[341349107,1730818353368,-300.0,0.00041095,120]
[341349108,1730818353382,-300.0,0.00041095,120]
[341349109,1730818353392,-300.0,0.00041095,120]
[341349110,1730818353401,-300.0,0.00041095,120]
[341349111,1730818353411,-300.0,0.00041095,120]
[341349112,1730818353420,-300.0,0.00041095,120]
[341349113,1730818353430,-300.0,0.00041095,120]
[341349114,1730818353439,-358.16203809,0.00041095,120]
[341349115,1730818353449,-2000.0,0.00041095,2]
[341349116,1730818353459,-150.0,0.00041095,30]
[341349117,1730818353469,-300.0,0.00041095,30]
[341349118,1730818353479,-450.0,0.00041095,30]
[341349119,1730818353490,-600.0,0.00041095,30]
[341349120,1730818353499,-750.0,0.00041095,30]
[341349121,1730818353509,-900.0,0.00041095,30]
[341349122,1730818353519,-490.54997605,0.00041095,30]
[341349123,1730818353528,-500.0,0.00041095,60]
[341349124,1730818353538,-500.0,0.00041095,60]
[341349125,1730818353548,-500.0,0.00041095,60]
[341349126,1730818353558,-211.91587229,0.00041095,60]
[341349127,1730818353567,-2019.5,0.00041095,120]
[341349128,1730818353576,-500.0,0.00041095,2]
[341349129,1730818353585,-500.0,0.00041095,2]
[341349130,1730818353595,-500.0,0.00041095,2]
[341349131,1730818353604,-510.07697749,0.00041095,2]
[341349132,1730818353613,-520.18902471,0.00041095,30]
[341349133,1730818353623,-500.0,0.00041095,90]
[341349134,1730818353635,-500.0,0.00041095,93]
[341349135,1730818353644,-500.0,0.00041095,96]
[341349136,1730818353654,-500.0,0.00041095,99]
[341349137,1730818353663,-500.0,0.00041095,102]
[341349138,1730818353674,-500.0,0.00041095,105]
[341349139,1730818353684,-500.0,0.00041095,108]
[341349140,1730818353693,-500.0,0.00041095,111]
[341349141,1730818353702,-500.0,0.00041095,114]
[341349142,1730818353712,-500.0,0.00041095,117]
[341349143,1730818353721,-500.0,0.00041095,120]
[341349144,1730818353730,-500.0,0.00041095,120]
[341349145,1730818353739,-252.16347306,0.00041095,120]
[341349146,1730818353748,-1000.0,0.00041096,13]